Cogmind - Beta 9.4 @@@ ROGUE MODE // 2020.03.21 @ 16:11:28 Player: erp.lsf Result: Self-destructed Performance ------------- Evolutions (1) 500 Regions Visited (3) 600 Robots Destroyed (35) 175 Value Destroyed (887) 887 Prototype IDs (2) 40 Alien Tech Used (0) 0 Bonus (0) 0 TOTAL SCORE: 2202 Bonus ------- None Cogmind --------- Core Integrity 174/400 Matter 236/300 Energy 86/100 System Corruption 0% Temperature Cool (0) Movement Flying (40) Location -9/Materials Parts ------- > --- POWER (1) -------- (None) > --- PROPULSION (3) --- Cesium-ion Thruster > --- UTILITY (3) ------ Small Storage Unit Medium Storage Unit Weight Redist. System > --- WEAPON (2) ------- (None) > --- INVENTORY (10) --- Nuclear Core Nuclear Core Carbon-fiber Leg Carbon-fiber Leg Cesium-ion Thruster Medium Matter Pod (100) Heavy Assault Rifle Mini Grenade Launcher Mini Grenade Launcher Peak State ------------ > --- POWER ------------ Nuclear Core > --- PROPULSION ------- Cesium-ion Thruster Cesium-ion Thruster Cesium-ion Thruster > --- UTILITY ---------- Small Storage Unit Medium Storage Unit > --- WEAPON ----------- Mini Grenade Launcher Mini Grenade Launcher > --- INVENTORY -------- Ion Engine Light Ion Engine Nuclear Core Compact Wheel Medium Matter Pod Light Assault Rifle [Rating: 18] Favorites ----------- Power Light Nuclear Core Engine Light Ion Engine Power Core Light Nuclear Core Propulsion Wheel Treads Light Treads Leg Aluminum Leg Wheel Wheel Hover Unit Improved Hover Unit Flight Unit Cesium-ion Thruster Utility Small Storage Unit Device Weight Redist. System Storage Small Storage Unit Protection Light Armor Plating Weapon Assault Rifle Energy Gun Medium Laser Ballistic Gun Assault Rifle Launcher Mini Grenade Launcher Build | -11 -10 -10 -9 ------- Run | Scr Mat Min Mat Slots Evolved 2 | . . . 2 Power . | . . . . Propulsion 1 | . . . 1 Utility 1 | . . . 1 Weapon . | . . . . Parts Attached 52 | 6 12 8 26 Power 6 | 1 . 2 3 Engine 3 | 1 . 1 1 Core 3 | . . 1 2 Reactor . | . . . . Propulsion 20 | 2 5 1 12 Treads 2 | . . . 2 Leg 3 | . . . 3 Wheel 11 | 2 5 1 3 Hover 1 | . . . 1 Flight 3 | . . . 3 Utility 4 | 1 1 . 2 Device 1 | . . . 1 Storage 2 | 1 1 . . Processor . | . . . . Hackware . | . . . . Protection 1 | . . . 1 Artifact . | . . . . Weapon 22 | 2 6 5 9 Energy Gun 7 | 1 . 3 3 Energy Cannon . | . . . . Ballistic Gun 6 | 1 4 . 1 Ballistic Cannon . | . . . . Launcher 9 | . 2 2 5 Special Weapon . | . . . . Impact Weapon . | . . . . Slashing Weapon . | . . . . Piercing Weapon . | . . . . Special Melee Weapon . | . . . . Unidentified Prototypes . | . . . . Parts Lost 12 | . . 1 11 Power 1 | . . . 1 Propulsion 7 | . . . 7 Utility 1 | . . . 1 Weapon 3 | . . 1 2 Highest Loss Streak 4 | . . 1 4 Average Slot Usage (%) 90 | . 91 100 84 Engine 5 | . 14 6 . Core 7 | . . 7 10 Treads 4 | . . . 9 Leg 1 | . . . 2 Wheel 15 | . 28 28 3 Hover 1 | . . . 3 Flight 5 | . . . 11 Device 1 | . . . 3 Storage 23 | . 20 28 22 Protection 2 | . . . 4 Energy Gun 5 | . . 9 6 Ballistic Gun 12 | . 27 13 5 Launcher 2 | . . 5 1 Naked Turns . | . . . . Heaviest Build 25 | 11 19 22 25 Greatest Support 40 | 26 26 20 40 Greatest Overweight (x) 7 | . 1 1 7 Average Overweight (x) . | . . . . Largest Inventory Capacity 10 | 6 10 10 10 Average Capacity 9 | 4 7 10 10 Most Carried 10 | 2 7 9 10 Average Carried 6 | 1 5 8 6 Final Capacity 10 | 6 10 10 10 Final Carried 9 | 2 7 8 9 Class Distribution -------------------- 68% | Mutant 31% | Scavenger-Mutant Dominant Class ---------------- Mutant | -10/Materials Mutant | -10/Mines Scavenger-Mutant | -9/Materials Resources | -11 -10 -10 -9 ----------- Run | Scr Mat Min Mat Matter Collected 1013 | 174 315 260 264 Remotely . | . . . . Salvage Created 995 | . 293 251 451 Parts 70 | . 26 18 26 Haulers Intercepted 1 | . 1 . . Recyclers Shooed 3 | . . . 3 Parts Field Recycled . | . . . . Retrieved Matter . | . . . . Parts Self-Destructed . | . . . . Prevented . | . . . . Kills | -11 -10 -10 -9 ------- Run | Scr Mat Min Mat Combat Hostiles Destroyed 24 | . 8 6 10 Guns 14 | . 5 4 5 AOE 10 | . 3 2 5 Classes Destroyed 9 | . 5 1 3 Worker 3 | . 1 . 2 Builder 2 | . 1 . 1 Tunneler 2 | . . 2 . Hauler 1 | . 1 . . Recycler 2 | . . . 2 Operator 1 | . . . 1 Swarmer 4 | . 2 . 2 Grunt 18 | . 6 6 6 Sentry 2 | . . . 2 Best Kill Streak 5 | . 5 3 5 Combat Bots Only 3 | . 3 2 3 Max Kills in Single Turn 4 | . 2 2 4 Gunslinging . | . . . . Exploded 2 | . 2 1 1 Melee . | . . . . Uniques/NPCs Destroyed . | . . . . Combat | -11 -10 -10 -9 -------- Run | Scr Mat Min Mat Damage Taken 1493 | . 157 328 1008 Core 348 | . 37 85 226 Absorbed by Shields . | . . . . Core Remaining (%) 75 | 100 . 51 . Volleys Fired 72 | . 19 18 35 Largest 2 | . 2 2 2 Hottest 115 | . 60 70 115 Shots Fired 141 | . 38 36 67 Gun 123 | . 34 32 57 Cannon . | . . . . Launcher 18 | . 4 4 10 Special . | . . . . Kinetic 82 | . 34 30 18 Thermal 41 | . . 2 39 Explosive 18 | . 4 4 10 Electromagnetic . | . . . . Robot Hit Streak 16 | . 7 16 9 Robot Miss Streak 6 | . 4 2 6 Penetration Max . | . . . . Secondary Targets 2 | . . 1 1 Max Gunslinging Chain 1 | . . 1 1 Shots Hit Robots 91 | . 22 30 39 Core Hits 59 | . 17 15 27 Critical Hits 1 | . . . 1 Critical Kills . | . . . . Critical Parts Destroyed 1 | . . . 1 Melee Attacks . | . . . . Impact . | . . . . Slashing . | . . . . Piercing . | . . . . Sneak Attacks . | . . . . Combat Hostiles . | . . . . Follow-up Attacks . | . . . . Damage Inflicted 2187 | . 516 540 1131 Guns 942 | . 249 268 425 Cannons . | . . . . Explosions 1238 | . 267 265 706 Melee . | . . . . Ramming 7 | . . 7 . Kinetic 562 | . 249 242 71 Thermal 380 | . . 26 354 Explosive 1238 | . 267 265 706 Electromagnetic . | . . . . Impact . | . . . . Slashing . | . . . . Piercing . | . . . . Highest Corruption . | . . . . Average Corruption . | . . . . Corruption Purged . | . . . . Overload Shots . | . . . . Overflow Damage 51 | . . 1 50 Projectiles . | . . . . Explosions 51 | . . 1 50 Melee . | . . . . Knockbacks . | . . . . Impact . | . . . . Kinetic . | . . . . Secondary . | . . . . Self-Inflicted Damage 3 | . . 3 . Shots . | . . . . Rammed 1 | . . 1 . Targets Rammed 1 | . . 1 . Kicked . | . . . . Crushed . | . . . . Highest Temperature 483 | . 12 24 483 Average Temperature 142 | . 6 7 178 Received Heat Transfer 669 | . 90 189 390 Effects 4 | . . . 4 Shutdowns 1 | . . . 1 Energy Bleed 1 | . . . 1 Interference 1 | . . . 1 Matter Decay 1 | . . . 1 Siege Activations . | . . . . Robots Corrupted . | . . . . Combat Hostiles . | . . . . Parts Fried . | . . . . Impact Corruptions . | . . . . Robots Melted . | . . . . Combat Hostiles . | . . . . Parts Melted 3 | . . . 3 Heat Transferred 1073 | . . 74 999 Parts Sabotaged . | . . . . Parts Stolen . | . . . . Parts Stripped . | . . . . Power Chain Reactions . | . . . . Missiles Intercepted . | . . . . Alert | -11 -10 -10 -9 ------- Run | Scr Mat Min Mat Peak Influence 277 | . 277 182 185 Average Influence 84 | . 108 79 79 Maximum Alert Level 1 | . 1 . . Low Security (%) 95 | 100 79 100 100 Level 1 4 | . 20 . . Level 2 . | . . . . Level 3 . | . . . . Level 4 . | . . . . Level 5 . | . . . . High Security . | . . . . Max Security . | . . . . Squads Dispatched 3 | . 1 . 2 Investigation 2 | . 1 . 1 Extermination . | . . . . Reinforcement 1 | . . . 1 Assault . | . . . . Garrison . | . . . . Intercept . | . . . . Construction Impeded . | . . . . Haulers Reinforced . | . . . . Stealth | -11 -10 -10 -9 --------- Run | Scr Mat Min Mat Distress Signals 1 | . . . 1 Communications Jammed . | . . . . Distress Signals . | . . . . Times Spotted 53 | . 14 6 33 Peak Tracking Total 8 | . 5 2 8 Tactical Retreats 1 | . 1 . . Traps | -11 -10 -10 -9 ------- Run | Scr Mat Min Mat Traps Triggered 5 | . 4 . 1 Indirectly . | . . . . Trap Hack Attempts . | . . . . Triggered . | . . . . Disarmed . | . . . . Reprogrammed . | . . . . Reused . | . . . . Traps Extracted . | . . . . Installed . | . . . . Triggered . | . . . . Machines | -11 -10 -10 -9 ---------- Run | Scr Mat Min Mat Machines Disabled 1 | . . . 1 Max in Single Turn 1 | . . . 1 Machines Sabotaged . | . . . . Garrisons Compromised . | . . . . Overloaded Fab Kills . | . . . . Fab Network Shutdowns . | . . . . Hacking | -11 -10 -10 -9 --------- Run | Scr Mat Min Mat Machines Accessed 5 | . 2 . 3 Terminals 3 | . 1 . 2 Fabricators . | . . . . Repair Stations 1 | . 1 . . Recycling Units . | . . . . Scanalyzers 1 | . . . 1 Garrison Access . | . . . . Total Hacks 9 | . 4 . 5 Successful 5 | . 1 . 4 Failed 4 | . 3 . 1 Catastrophic 2 | . 2 . . Database Lockouts . | . . . . Manual . | . . . . Terminals 5 | . 3 . 2 Fabricators . | . . . . Repair Stations 1 | . 1 . . Recycling Units . | . . . . Scanalyzers 3 | . . . 3 Garrison Access . | . . . . Terminal Hacks 2 | . . . 2 Prototype ID Bank 1 | . . . 1 Zone Layout 1 | . . . 1 Fabricator Hacks . | . . . . Repair Station Hacks 1 | . 1 . . Scan Component 1 | . 1 . . Recycling Unit Hacks . | . . . . Scanalyzer 2 | . . . 2 Insert Component 1 | . . . 1 Analyze 1 | . . . 1 Garrison Access Hacks . | . . . . Unauthorized Hacks . | . . . . Terminals . | . . . . Fabricators . | . . . . Repair Stations . | . . . . Recycling Units . | . . . . Scanalyzers . | . . . . Garrison Access . | . . . . Data Cores Recovered . | . . . . Used . | . . . . Hacking Detections 4 | . 2 . 2 Full Trace Events 2 | . 1 . 1 Feedback Events . | . . . . Feedback Blocked . | . . . . Robot Schematics Acquired . | . . . . Robots Built . | . . . . Matter . | . . . . Time . | . . . . Total Robot Build Rating . | . . . . Part Schematics Acquired 1 | . . . 1 Parts Built . | . . . . Matter . | . . . . Time . | . . . . Total Part Build Rating . | . . . . Parts Repaired . | . . . . Time . | . . . . Parts Recycled . | . . . . Recycled Matter . | . . . . Retrieved Matter . | . . . . Retrieved Components . | . . . . Parts Scanalyzed 1 | . . . 1 Part Schematics Acquired 1 | . . . 1 Parts Damaged . | . . . . Bothacking | -11 -10 -10 -9 ------------ Run | Scr Mat Min Mat Used RIF Installer . | . . . . Robots Hacked . | . . . . Non-combat . | . . . . Combat . | . . . . Robot Hacks Applied . | . . . . Relay Couplers Released . | . . . . Robots Rewired . | . . . . Allies Hacked . | . . . . Hacks Repelled . | . . . . Allies | -11 -10 -10 -9 -------- Run | Scr Mat Min Mat Total Allies . | . . . . Largest Group . | . . . . Highest-Rated Group . | . . . . Highest-Rated Ally . | . . . . Total Orders . | . . . . Ally Attacks . | . . . . Total Damage . | . . . . Kills . | . . . . Allies Corrupted . | . . . . Allies Melted . | . . . . Intel | -11 -10 -10 -9 ------- Run | Scr Mat Min Mat Robot Analysis Total . | . . . . Derelict Logs Recovered 1 | . . 1 . Drone Launches . | . . . . Drone Recoveries . | . . . . Exploration | -11 -10 -10 -9 ------------- Run | Scr Mat Min Mat Turns Passed 2120 | 56 491 553 1020 Spaces Moved 1684 | 52 485 509 638 Core 6 | 5 . . 1 Treads 225 | . . . 225 Legs 82 | . . . 82 Wheels 1064 | 47 485 509 23 Hover 2 | . . . 2 Flight 305 | . . . 305 Fastest Speed 34 | 50 80 80 34 Average Speed 100 | 86 84 85 126 Slowest Speed 400 | 100 90 90 400 Overloaded Moves . | . . . . Propulsion Burnouts . | . . . . Robots Hopped . | . . . . Cave-ins Triggered . | . . . . Exploration Rate (%) 53 | 3 71 78 63 Regions Visited 3 Branch Regions 1 Pre-discovered Areas . | . . . . Known Exits Taken . | . . . . Unknown Exits Taken 3 | 1 1 1 . Scrap Searched 2 | . . 2 . Spaces Dug . | . . . . Terrain Destroyed 147 | . 29 40 78 Melee . | . . . . Projectile . | . . . . AOE 147 | . 29 40 78 Actions | -11 -10 -10 -9 --------- Run | Scr Mat Min Mat Total 1954 | 59 521 589 785 Wait 118 | . 3 50 65 Move 1681 | 51 484 508 638 Hop . | . . . . Pick Up 13 | 2 3 2 6 Fast Attach 24 | 6 4 . 14 Attach 5 | . . 1 4 Detach 3 | . . . 3 Swap 23 | . 8 7 8 Drop 14 | . . 2 12 Fire 72 | . 19 18 35 Melee . | . . . . Ram 1 | . . 1 . Kick . | . . . . Crush . | . . . . Escape Stasis . | . . . . Rewire . | . . . . Trap . | . . . . Miscellaneous . | . . . . Route ------- -11/Scrapyard -10/Materials (discovered 3 exits: *Mat x2 / [*Min]) -10/Mines (discovered 3 exits: *Mat x2 / [*Exi]) -9/Materials (discovered 2 exits: [*Mat] / Min) History --------- Turn | Location | Event 4 | -11/Scrapyard | Discovered new exit (range 15) 57 | -11/Scrapyard | Entered Materials 194 | -10/Materials | Discovered new exit (range 6) 313 | -10/Materials | Build established: Mutant 445 | -10/Materials | Discovered new exit (range 6) 541 | -10/Materials | Discovered new exit (range 10) 548 | -10/Materials | Entered Mines 631 | -10/Mines | Deemed a non-threat by the Exiles lab entrance 632 | -10/Mines | Discovered new exit (range 5) 693 | -10/Mines | Discovered new exit (range 9) 849 | -10/Mines | Learned 2 Materials zone layouts 931 | -10/Mines | Discovered new exit (range 12) 1101 | -10/Mines | Entered Materials 1101 | -9/Materials | Evolved 2 slots: Propulsion x1, Utility x1 1102 | -9/Materials | Identified exit to Mines 1192 | -9/Materials | Lost 4 parts (4n) 1369 | -9/Materials | Build established: Scavenger-Mutant 1453 | -9/Materials | Discovered new exit (range 16) 1648 | -9/Materials | Lost 3 parts (1n1u1w) 2039 | -9/Materials | Build established: Mutant 2121 | -9/Materials | Core integrity fell below 50% 2121 | -9/Materials | Self-destructed Last Messages --------------- K-01 Serf cleans the Nuclear Reactor. Connecting with Scanalyzer... >>Insert(Cesium-ion Thruster) Scanning Cesium-ion Thruster... Ready to analyze. >>Scanalyze Scanning: Cesium-ion Thruster... Schematic downloaded. ALERT: Suspicious activity at Scanalyzer M002. Dispatching Investigation squad. K-01 Serf cleans the Nuclear Reactor. C-30 ARC bursts open, deploying its payload. L-31 Rogue unfolds itself. G-34 Mercenary unfolds itself. K-01 Serf collects debris. Cesium-ion Thruster destroyed. Nuclear Core destroyed. U-05 Engineer builds a Door. T-07 Excavator destroyed. Acquired 13 matter. Map ----- +----------------------------------------------------+ | ????????????????# | | ????????????????# "%" | | ????????????????# ####### ##### ### | | ?????????######?# #?????# #???# !#?? | | ?????????# ]?# #?#####+#???# !#?? | | ?????????# # # #???## !##?? | | ?????????#"" # # ? #???########?? | | ?????????#"T + + ??? #????????????? | | ?????????#"" # #???? #????????????? | | ?????????# # #???? ##########???? | | ???####??######## ##???#### #???? | | ???# ####### ######## #???? | | ???# Y # #???? | | ???#] + #???? | | ???# # #???? | | ???# ###" ## ###/#### #???? | | ???## ????#"T?## ##??? !## #?### | | ????#???######??# #???? ## #?# | | ????????# # #????" ## #?# | | ????????# + #????" ###########?# | | ????????# [ /#!| #????" #???????????# | | ????????#! ! ??# * #???? #???????????# | | ????????####????#! #???? #???????????# | | ????????????????# ###????###???????????# | | ???????????????## #????????????????????# | | ???????????????+ @#??????????????????????? | | ???????????????##/#??????????????????????? | | ???????????????? ??????????????????????? | | ???????????????? ??????????????????????? | | ???????????????# #?????????????????????? | | ???????????????# " #?????????????????????? | | ???????????????# T #?????????????????????? | | ???????????????# " #?????????????????????? | | ???????????????# #?????????????????????? | | ???????????????#Y###?????????????????????? | | ???????????????##????????????????????????? | | ?????????????????????????????????????????? | | ?????????????????????????????????????????? | | ?????????????????????????????????????????? | | ?????????????????????????????????????????? | | ?????????????????????????????????????????? | | ?????????????????????????????????????????? | | ?????????????????????????????????????????? | | ?????????????????????????????????????????? | | ?????????????????????????????????????????? | | ?????????????????????????????????????????? | | ?????????????????????????????????????????? | | ?????????????????????????????????????????? | | ?????????????????????????????????????????? | | ?????????????????????????????????????????? | +----------------------------------------------------+ Best States ------------- Heat Dissipation 28 Energy Generation 14 Energy Capacity 250 Matter Stores 300 Matter Capacity 300 Sight Range 16 Terrain Scan Density 10 Additional Mass Support 6 Armor Coverage 150 Evasion (%) 63 Recoil Reduction 2 Item Schematics ----------------- Cesium-ion Thruster | -9/Materials | Scanalyzed Robot Schematics ------------------ None Fabricated ------------ Nothing Alien Tech Used ----------------- None Achievements -------------- None Challenges ------------ None Game ------ Seed CorruptionGuidanceLoader Manual? 0 Play Time 00:28:20 Cumulative 5.1 hours Start 2020.03.21 @ 15:40:53 End 2020.03.21 @ 16:11:28 Sessions 1 Manual Loads 0 Difficulty Rogue Special Mode None Game No. 10 Rogue 10 Adventurer 0 Explorer 0 Win Type - Total 0 Types 0/0/0/0/0/0/0 Lore% 11 Gallery% 8 Achievement% 10 Wizard Run 0 Options --------- ASCII 0 Keyboard 0 Movement Numpad Keybinds 0 Fullscreen 2 Font 24/Smallcaps Map View 76x50 Tactical HUD 0 Map Filters NONE Filters NONE Steam 1 RUN: 8326cf82-e2fa-486f-a1cd-65f69997a6ec